[Event "CZE-ch Amateurs 2022"]
[Site "Luhacovice"]
[Date "2022.03.12"]
[Round "1.16"]
[White "Bures, Vit"]
[Black "Buk, Pavel"]
[Result "1-0"]
[ECO "A83"]
[WhiteElo "2121"]
[BlackElo "1492"]
[Annotator "NA"]
[PlyCount "55"]
[EventDate "2022.03.12"]
[EventType "swiss"]
[EventCountry "CZE"]
[SourceTitle "playchess.com"]
[Source "ChessBase"]
[SourceQuality "1"]
[TimeControl "5400+30"]

1. d4 {[%emt 0:00:38]} f5 {[%emt 0:02:37]} 2. Nc3 {[%emt 0:00:07]} Nf6 {[%emt 0:00:11]} 3. Bg5 {[%emt 0:00:05]} e6 {[%emt 0:00:05]} 4. e4 {[%emt 0:00:14]} fxe4 {[%emt 0:31:46]} 5. Nxe4 {[%emt 0:00:13]} Be7 {[%emt 0:00:17]} 6. Bxf6 {[%emt 0:00:06]} Bxf6 {[%emt 0:00:07]} 7. Qh5+ {[%emt 0:00:10]} g6 {[%emt 0:01:02]} 8. Qh6 {[%emt 0:00:04]} Qe7 {[%emt 0:02:12]} 9. Nxf6+ {[%emt 0:00:10]} Qxf6 {[%emt 0:00:10]} 10. Nf3 {[%emt 0:00:07]} Nc6 {[%emt 0:03:38]} 11. O-O-O {[%emt 0:03:00]} b6 {[%emt 0:17:46]} 12. c3 {[%emt 0:08:14]} Bb7 {[%emt 0:04:33]} 13. Bd3 {[%emt 0:00:17]} O-O-O {[%emt 0:01:43]} 14. Rhe1 {[%emt 0:01:02]} Ne7 {[%emt 0:17:59]} 15. Be4 {[%emt 0:00:48]} Bxe4 {[%emt 0:03:50]} 16. Rxe4 {[%emt 0:00:37]} Rdf8 {[%emt 0:00:45]} 17. Rde1 {[%emt 0:02:02]} Nf5 {[%emt 0:05:35]} 18. Qd2 {[%emt 0:05:54]} Nd6 {[%emt 0:01:23]} 19. R4e2 {[%emt 0:00:19]} Qf4 {[%emt 0:02:08]} 20. b3 {[%emt 0:00:09]} Qxd2+ {[%emt 0:01:36]} 21. Kxd2 {[%emt 0:00:11]} c6 {[%emt 0:00:33]} 22. Ne5 {[%emt 0:00:19]} Re8 {[%emt 0:00:52]} 23. f4 {[%emt 0:03:32]} Rhf8 {[%emt 0:00:27]} 24. g3 {[%emt 0:00:14]} Kc7 {[%emt 0:00:20]} 25. Kd3 {[%emt 0:00:09]} b5 {[%emt 0:00:08]} 26. Rb1 {[%emt 0:00:43]} Rb8 {[%emt 0:00:19]} 27. Reb2 {[%emt 0:00:32]} b4 {[%emt 0:01:17]} 28. c4 {[%emt 0:00:24]} 1-0

[Event "CZE-ch Amateurs 2022"]
[Site "Luhacovice"]
[Date "2022.03.12"]
[Round "1.17"]
[White "Klima, Martin"]
[Black "Pilch, Roman"]
[Result "0-1"]
[ECO "A36"]
[WhiteElo "1486"]
[BlackElo "2136"]
[Annotator "NA"]
[PlyCount "72"]
[EventDate "2022.03.12"]
[EventType "swiss"]
[EventCountry "CZE"]
[SourceTitle "playchess.com"]
[Source "ChessBase"]
[SourceQuality "1"]
[TimeControl "5400+30"]

1. c4 {[%emt 0:00:27]} Nf6 {[%emt 0:00:37]} 2. Nc3 {[%emt 0:00:05]} c5 {[%emt 0:00:28]} 3. g3 {[%emt 0:00:07]} g6 {[%emt 0:00:50]} 4. Bg2 {[%emt 0:00:05]} Bg7 {[%emt 0:01:08]} 5. e3 {[%emt 0:00:21]} O-O {[%emt 0:00:56]} 6. Nge2 {[%emt 0:00:09]} d6 {[%emt 0:04:28]} 7. O-O {[%emt 0:00:10]} Nc6 {[%emt 0:02:38]} 8. a3 {[%emt 0:01:50]} Rb8 {[%emt 0:05:40]} 9. Qc2 {[%emt 0:02:29]} Bd7 {[%emt 0:05:52]} 10. d3 {[%emt 0:02:12]} a6 {[%emt 0:01:24]} 11. Nf4 {[%emt 0:06:05]} b5 {[%emt 0:02:12]} 12. cxb5 {[%emt 0:01:36]} axb5 {[%emt 0:00:10]} 13. Ncd5 {[%emt 0:06:12]} Ne8 {[%emt 0:01:50]} 14. e4 {[%emt 0:04:46]} e6 {[%emt 0:03:21]} 15. Ne3 {[%emt 0:01:00]} Nd4 {[%emt 0:05:27]} 16. Qd1 {[%emt 0:00:17]} Nc7 {[%emt 0:04:14]} 17. Rb1 {[%emt 0:02:17]} Qe7 {[%emt 0:01:11]} 18. b4 {[%emt 0:02:47]} Rfc8 {[%emt 0:02:09]} 19. Bb2 {[%emt 0:06:04]} Na8 {[%emt 0:03:23]} 20. Ne2 {[%emt 0:02:38]} Nb6 {[%emt 0:01:24]} 21. Nxd4 {[%emt 0:02:18]} cxd4 {[%emt 0:03:02]} 22. Nc2 {[%emt 0:07:53]} Na4 {[%emt 0:00:37]} 23. Qd2 {[%emt 0:03:04]} e5 {[%emt 0:05:36]} 24. Rfc1 {[%emt 0:07:39]} Nxb2 {[%emt 0:05:35]} 25. Rxb2 {[%emt 0:00:02]} Rc3 {[%emt 0:00:14]} 26. Ra1 {[%emt 0:08:27]} Rbc8 {[%emt 0:02:04]} 27. Bf3 {[%emt 0:01:38]} h5 {[%emt 0:01:37]} 28. Bd1 {[%emt 0:02:01]} Kh7 {[%emt 0:02:11]} 29. Kg2 {[%emt 0:01:49]} Bh6 {[%emt 0:01:11]} 30. Qe2 {[%emt 0:00:22]} Qe6 {[%emt 0:01:11]} 31. Ne1 {[%emt 0:07:10]} Ra8 {[%emt 0:02:02]} 32. Nc2 {[%emt 0:02:43]} Qh3+ {[%emt 0:00:49]} 33. Kh1 {[%emt 0:00:14]} h4 {[%emt 0:01:19]} 34. g4 {[%emt 0:01:33]} Qxd3 {[%emt 0:01:27]} 35. Qxd3 {[%emt 0:03:52]} Rxd3 {[%emt 0:00:08]} 36. f3 {[%emt 0:00:26]} Rc3 {[%emt 0:01:01]} 0-1

[Event "CZE-ch Amateurs 2022"]
[Site "Luhacovice"]
[Date "2022.03.12"]
[Round "1.18"]
[White "Toman, Jan"]
[Black "Stehlik, Pavel"]
[Result "1-0"]
[ECO "D13"]
[WhiteElo "2127"]
[BlackElo "1455"]
[Annotator "NA"]
[PlyCount "49"]
[EventDate "2022.03.12"]
[EventType "swiss"]
[EventCountry "CZE"]
[SourceTitle "playchess.com"]
[Source "ChessBase"]
[SourceQuality "1"]
[TimeControl "5400+30"]

1. d4 {[%emt 0:00:08]} d5 {[%emt 0:00:07]} 2. c4 {[%emt 0:00:08]} c6 {[%emt 0:00:11]} 3. cxd5 {[%emt 0:00:25]} cxd5 {[%emt 0:00:11]} 4. Nc3 {[%emt 0:00:05]} Nf6 {[%emt 0:01:17]} 5. Bf4 {[%emt 0:00:09]} Nc6 {[%emt 0:04:39]} 6. e3 {[%emt 0:00:45]} e6 {[%emt 0:02:14]} 7. Bd3 {[%emt 0:01:41]} Be7 {[%emt 0:00:35]} 8. Nf3 {[%emt 0:01:10]} O-O {[%emt 0:00:17]} 9. O-O {[%emt 0:00:30]} Bd6 {[%emt 0:10:31]} 10. Bxd6 {[%emt 0:03:31]} Qxd6 {[%emt 0:00:12]} 11. Rc1 {[%emt 0:01:20]} a6 {[%emt 0:08:57]} 12. h3 {[%emt 0:04:02]} Nb4 {[%emt 0:03:51]} 13. Bb1 {[%emt 0:01:24]} Bd7 {[%emt 0:08:55]} 14. Ne5 {[%emt 0:02:41]} Rfc8 {[%emt 0:08:29]} 15. f4 {[%emt 0:03:54]} Be8 {[%emt 0:05:53]} 16. g4 {[%emt 0:02:24]} g6 {[%emt 0:01:20]} 17. Qf3 {[%emt 0:01:56]} Nd7 {[%emt 0:00:55]} 18. Qf2 {[%emt 0:12:11]} f5 {[%emt 0:16:22]} 19. gxf5 {[%emt 0:06:54]} exf5 {[%emt 0:00:41]} 20. Qg2 {[%emt 0:00:18]} Nxe5 {[%emt 0:00:25]} 21. fxe5 {[%emt 0:00:59]} Qe6 {[%emt 0:03:35]} 22. Bxf5 {[%emt 0:00:21]} Qb6 {[%emt 0:08:41]} 23. Bxc8 {[%emt 0:00:37]} Rxc8 {[%emt 0:00:07]} 24. Nxd5 {[%emt 0:00:34]} Bc6 {[%emt 0:06:41]} 25. Nxb6 {[%emt 0:00:23]} 1-0

[Event "CZE-ch Amateurs 2022"]
[Site "Luhacovice"]
[Date "2022.03.12"]
[Round "1.19"]
[White "Rychtecky, Pavel"]
[Black "Gabriel, Adam"]
[Result "0-1"]
[ECO "B44"]
[WhiteElo "1502"]
[BlackElo "2097"]
[Annotator "ChessBase"]
[PlyCount "88"]
[EventDate "2022.03.12"]
[EventType "swiss"]
[EventCountry "CZE"]
[SourceTitle "playchess.com"]
[Source "ChessBase"]
[SourceQuality "1"]
[TimeControl "5400+30"]

1. e4 {[%emt 0:00:52]} c5 {[%emt 0:00:56]} 2. Nf3 {[%emt 0:00:20]} e6 {[%emt 0:00:10]} 3. d4 {[%emt 0:00:09]} cxd4 {[%emt 0:00:12]} 4. Nxd4 {[%emt 0:00:01]} Nf6 {[%emt 0:00:12]} 5. Bd3 {[%emt 0:01:13]} Nc6 {[%emt 0:00:11]} 6. Be3 {[%emt 0:00:50]} d5 {[%emt 0:01:58]} 7. Nxc6 {[%emt 0:03:05]} bxc6 {[%emt 0:00:09]} 8. exd5 {[%emt 0:00:45]} exd5 {[%emt 0:01:12]} 9. O-O {[%emt 0:02:17]} Bg4 {[%emt 0:06:32]} 10. f3 {[%emt 0:01:35]} Be6 {[%emt 0:00:16]} 11. c3 {[%emt 0:02:49]} Bd6 {[%emt 0:02:12]} 12. Qc2 {[%emt 0:01:02]} O-O {[%emt 0:00:34]} 13. Bg5 {[%emt 0:04:22]} h6 {[%emt 0:02:15]} 14. Be3 {[%emt 0:17:10]} Re8 {[%emt 0:01:01]} 15. Qf2 {[%emt 0:01:02]} Qc7 {[%emt 0:09:54]} 16. g3 {[%emt 0:01:25]} c5 {[%emt 0:02:27]} 17. Na3 {[%emt 0:04:28]} a6 {[%emt 0:05:55]} 18. c4 {[%emt 0:03:17]} d4 {[%emt 0:17:32]} 19. Bd2 {[%emt 0:01:36]} Bd7 {[%emt 0:01:42]} 20. Rfe1 {[%emt 0:02:09]} Bc6 {[%emt 0:01:00]} 21. Bf1 {[%emt 0:10:27]} Qb7 {[%emt 0:00:33]} 22. b3 {[%emt 0:00:43]} Bxf3 {[%emt 0:00:33]} 23. Bg2 {[%emt 0:00:15]} Bxg2 {[%emt 0:01:59]} 24. Qxg2 {[%emt 0:00:32]} Qxg2+ {[%emt 0:02:00]} 25. Kxg2 {[%emt 0:00:02]} Ne4 {[%emt 0:00:11]} 26. Rad1 {[%emt 0:08:15]} f5 {[%emt 0:01:57]} 27. Re2 {[%emt 0:07:17]} Kf7 {[%emt 0:03:34]} 28. Kf3 {[%emt 0:00:48]} g5 {[%emt 0:00:34]} 29. Nb1 {[%emt 0:03:59]} h5 {[%emt 0:04:47]} 30. Be1 {[%emt 0:02:46]} h4 {[%emt 0:12:32]} 31. gxh4 {[%emt 0:05:40]} g4+ {[%emt 0:00:08]} 32. Kg2 {[%emt 0:00:10]} f4 {[%emt 0:00:21]} 33. Rb2 {[%emt 0:01:44]} a5 {[%emt 0:10:58]} 34. a3 {[%emt 0:01:41]} f3+ {[%emt 0:00:20]} 35. Kh1 {[%emt 0:00:41]} Bf4 {[%emt 0:03:00]} 36. Kg1 {[%emt 0:02:56]} Kg6 {[%emt 0:01:09]} 37. b4 {[%emt 0:01:38]} axb4 {[%emt 0:00:05]} 38. axb4 {[%emt 0:00:17]} Be3+ {[%emt 0:01:13]} 39. Kf1 {[%emt 0:01:07]} f2 {[%emt 0:01:34]} 40. Bd2 {[%emt 0:00:36]} g3 {[%emt 0:00:29]} 41. Bxe3 {[%emt 0:01:27]} dxe3 {[%emt 0:00:21]} 42. Re2 {[%emt 0:00:56]} Nd2+ {[%emt 0:02:45]} 43. Nxd2 {[%emt 0:00:41]} exd2 {[%emt 0:00:06]} 44. Rexd2 {[%emt 0:00:52]} Re1+ {[%emt 0:01:36]} 0-1

[Event "CZE-ch Amateurs 2022"]
[Site "Luhacovice"]
[Date "2022.03.12"]
[Round "1.20"]
[White "Cupek, Martin"]
[Black "Kadlcik, Petr"]
[Result "1-0"]
[ECO "A00"]
[WhiteElo "2108"]
[BlackElo "1448"]
[Annotator "NA"]
[PlyCount "67"]
[EventDate "2022.03.12"]
[EventType "swiss"]
[EventCountry "CZE"]
[SourceTitle "playchess.com"]
[Source "ChessBase"]
[SourceQuality "1"]
[TimeControl "5400+30"]

1. g4 {[%emt 0:00:28]} e5 {[%emt 0:02:54]} 2. Bg2 {[%emt 0:00:08]} d5 {[%emt 0:00:57]} 3. d4 {[%emt 0:00:25]} e4 {[%emt 0:00:31]} 4. g5 {[%emt 0:00:23]} Ne7 {[%emt 0:00:51]} 5. c4 {[%emt 0:00:32]} c6 {[%emt 0:01:17]} 6. Nc3 {[%emt 0:00:41]} Be6 {[%emt 0:01:29]} 7. h4 {[%emt 0:03:45]} Nd7 {[%emt 0:01:32]} 8. cxd5 {[%emt 0:00:27]} cxd5 {[%emt 0:00:24]} 9. Bf4 {[%emt 0:04:43]} Nc6 {[%emt 0:02:29]} 10. Bxe4 {[%emt 0:11:30]} Nb6 {[%emt 0:09:05]} 11. Bf3 {[%emt 0:01:14]} Bd6 {[%emt 0:03:23]} 12. Bxd6 {[%emt 0:00:09]} Qxd6 {[%emt 0:00:06]} 13. e3 {[%emt 0:00:49]} O-O {[%emt 0:01:54]} 14. Nge2 {[%emt 0:00:08]} Qb4 {[%emt 0:03:20]} 15. b3 {[%emt 0:02:55]} Rac8 {[%emt 0:00:42]} 16. Rc1 {[%emt 0:04:33]} a6 {[%emt 0:01:37]} 17. Nf4 {[%emt 0:03:49]} Na7 {[%emt 0:01:07]} 18. Qd2 {[%emt 0:00:56]} Nb5 {[%emt 0:01:11]} 19. Nd3 {[%emt 0:02:56]} Qe7 {[%emt 0:12:12]} 20. Nxb5 {[%emt 0:01:37]} axb5 {[%emt 0:00:40]} 21. Ke2 {[%emt 0:00:37]} f6 {[%emt 0:01:23]} 22. Qb4 {[%emt 0:01:27]} Qf7 {[%emt 0:01:44]} 23. Nf4 {[%emt 0:00:46]} fxg5 {[%emt 0:01:10]} 24. hxg5 {[%emt 0:00:15]} Rc6 {[%emt 0:02:08]} 25. Qxb5 {[%emt 0:01:22]} Rfc8 {[%emt 0:01:41]} 26. Rxc6 {[%emt 0:01:33]} Rxc6 {[%emt 0:00:09]} 27. Rxh7 {[%emt 0:05:50]} Qf5 {[%emt 0:01:53]} 28. g6 {[%emt 0:00:04]} Qc2+ {[%emt 0:01:39]} 29. Kf1 {[%emt 0:00:13]} Qf5 {[%emt 0:00:21]} 30. Rh5 {[%emt 0:02:34]} Qf6 {[%emt 0:04:35]} 31. Kg2 {[%emt 0:00:08]} Bf5 {[%emt 0:00:42]} 32. Bxd5+ {[%emt 0:00:49]} Nxd5 {[%emt 0:01:21]} 33. Qxd5+ {[%emt 0:00:03]} Be6 {[%emt 0:00:22]} 34. Qg5 {[%emt 0:00:41]} 1-0

[Event "CZE-ch Amateurs 2022"]
[Site "Luhacovice"]
[Date "2022.03.12"]
[Round "1.21"]
[White "Hrancik, Martin"]
[Black "Urban, Zdenek"]
[Result "0-1"]
[ECO "D85"]
[WhiteElo "1444"]
[BlackElo "2093"]
[Annotator "NA"]
[PlyCount "44"]
[EventDate "2022.03.12"]
[EventType "swiss"]
[EventCountry "CZE"]
[SourceTitle "playchess.com"]
[Source "ChessBase"]
[SourceQuality "1"]
[TimeControl "5400+30"]

1. d4 {[%emt 0:04:03]} Nf6 {[%emt 0:00:14]} 2. c4 {[%emt 0:01:34]} g6 {[%emt 0:00:28]} 3. Nc3 {[%emt 0:00:32]} d5 {[%emt 0:00:09]} 4. cxd5 {[%emt 0:03:24]} Nxd5 {[%emt 0:00:10]} 5. Nxd5 {[%emt 0:00:07]} Qxd5 {[%emt 0:00:10]} 6. e3 {[%emt 0:00:57]} Nd7 {[%emt 0:03:24]} 7. Qa4 {[%emt 0:04:49]} Bg7 {[%emt 0:01:21]} 8. Nf3 {[%emt 0:00:27]} O-O {[%emt 0:00:34]} 9. Bc4 {[%emt 0:01:48]} Qd6 {[%emt 0:01:36]} 10. O-O {[%emt 0:04:04]} Nb6 {[%emt 0:06:32]} 11. Qb3 {[%emt 0:03:30]} Nxc4 {[%emt 0:00:16]} 12. Qxc4 {[%emt 0:00:22]} Be6 {[%emt 0:00:32]} 13. Qc2 {[%emt 0:07:33]} Rfd8 {[%emt 0:01:07]} 14. b3 {[%emt 0:04:46]} Rac8 {[%emt 0:03:42]} 15. Bb2 {[%emt 0:02:16]} Bg4 {[%emt 0:04:10]} 16. Nd2 {[%emt 0:01:33]} c5 {[%emt 0:05:24]} 17. Qe4 {[%emt 0:15:56]} Be2 {[%emt 0:02:56]} 18. Rfe1 {[%emt 0:08:07]} Ba6 {[%emt 0:01:38]} 19. Ba3 {[%emt 0:01:21]} Qd7 {[%emt 0:02:36]} 20. Bxc5 {[%emt 0:01:50]} Rxc5 {[%emt 0:00:15]} 21. dxc5 {[%emt 0:03:00]} Bxa1 {[%emt 0:00:08]} 22. Nf3 {[%emt 0:04:07]} Bc3 {[%emt 0:00:12]} 0-1

[Event "CZE-ch Amateurs 2022"]
[Site "Luhacovice"]
[Date "2022.03.13"]
[Round "2.1"]
[White "Jedlicka, Ales"]
[Black "Lukastik, David"]
[Result "1-0"]
[ECO "D15"]
[WhiteElo "2223"]
[BlackElo "1854"]
[Annotator "RC"]
[PlyCount "63"]
[EventDate "2022.03.12"]
[EventType "swiss"]
[EventCountry "CZE"]
[SourceTitle "playchess.com"]
[Source "ChessBase"]
[SourceQuality "1"]
[TimeControl "5400+30"]

1. d4 {[%emt 0:00:10]} c6 {[%emt 0:00:06]} 2. c4 {[%emt 0:00:28]} d5 {[%emt 0:00:09]} 3. Nf3 {[%emt 0:00:14]} Nf6 {[%emt 0:01:18]} 4. Nc3 {[%emt 0:00:22]} dxc4 {[%emt 0:00:36]} 5. e4 {[%emt 0:00:42]} e6 {[%emt 0:09:17]} 6. Bxc4 {[%emt 0:01:34]} Bb4 {[%emt 0:00:22]} 7. Qe2 {[%emt 0:00:56]} O-O {[%emt 0:01:06]} 8. O-O {[%emt 0:00:56]} Nbd7 {[%emt 0:01:13]} 9. Bg5 {[%emt 0:02:26]} h6 {[%emt 0:01:27]} 10. Bh4 {[%emt 0:16:39]} Be7 {[%emt 0:01:08]} 11. Rfd1 {[%emt 0:01:16]} Re8 {[%emt 0:08:21]} 12. e5 {[%emt 0:01:59]} Nd5 {[%emt 0:00:34]} 13. Bxe7 {[%emt 0:00:40]} Qxe7 {[%emt 0:01:23]} 14. Ne4 {[%emt 0:03:54]} N7b6 {[%emt 0:17:34]} 15. Bb3 {[%emt 0:00:29]} Nf4 {[%emt 0:01:34]} 16. Qd2 {[%emt 0:02:03]} Nbd5 {[%emt 0:00:42]} 17. g3 {[%emt 0:01:03]} Ng6 {[%emt 0:01:22]} 18. Rac1 {[%emt 0:03:23]} f5 {[%emt 0:12:52]} 19. exf6 {[%emt 0:02:42]} Nxf6 {[%emt 0:00:40]} 20. Re1 {[%emt 0:01:22]} Kh8 {[%emt 0:01:43]} 21. Bc2 {[%emt 0:01:48]} Bd7 {[%emt 0:02:55]} 22. Nc5 {[%emt 0:02:35]} Nf8 {[%emt 0:00:12]} 23. Ne5 {[%emt 0:07:29]} Kg8 {[%emt 0:05:30]} 24. Bb3 {[%emt 0:03:43]} Bc8 {[%emt 0:01:55]} 25. f4 {[%emt 0:03:26]} Nd5 {[%emt 0:04:06]} 26. f5 {[%emt 0:02:15]} Qg5 {[%emt 0:01:46]} 27. Qxg5 {[%emt 0:00:38]} hxg5 {[%emt 0:00:13]} 28. fxe6 {[%emt 0:00:54]} Nxe6 {[%emt 0:00:50]} 29. Nf3 {[%emt 0:02:33]} g4 {[%emt 0:01:07]} 30. Ng5 {[%emt 0:02:15]} Nec7 {[%emt 0:07:11]} 31. Bxd5+ {[%emt 0:01:54]} cxd5 {[%emt 0:00:22]} 32. Nd3 {[%emt 0:04:35]} 1-0

[Event "CZE-ch Amateurs 2022"]
[Site "Luhacovice"]
[Date "2022.03.13"]
[Round "2.2"]
[White "Vlachopulos, Georgis"]
[Black "Jun, Rudolf"]
[Result "0-1"]
[ECO "D00"]
[WhiteElo "1898"]
[BlackElo "2215"]
[Annotator "ChessBase"]
[PlyCount "53"]
[EventDate "2022.03.12"]
[EventType "swiss"]
[EventCountry "CZE"]
[SourceTitle "playchess.com"]
[Source "ChessBase"]
[SourceQuality "1"]
[TimeControl "5400+30"]

1. d4 {[%emt 0:00:05]} Nf6 {[%emt 0:01:11]} 2. Bf4 {[%emt 0:00:13]} g6 {[%emt 0:00:58]} 3. Nc3 {[%emt 0:02:08]} d5 {[%emt 0:01:01]} 4. Nf3 {[%emt 0:04:39]} Bg7 {[%emt 0:00:53]} 5. Qd2 {[%emt 0:00:38]} O-O {[%emt 0:03:08]} 6. Bh6 {[%emt 0:08:24]} Bd7 {[%emt 0:14:54]} 7. Bxg7 {[%emt 0:00:15]} Kxg7 {[%emt 0:00:08]} 8. Ne5 {[%emt 0:01:37]} b5 {[%emt 0:01:18]} 9. a3 {[%emt 0:01:23]} Nc6 {[%emt 0:14:32]} 10. f3 {[%emt 0:01:19]} e6 {[%emt 0:12:52]} 11. e3 {[%emt 0:01:21]} a6 {[%emt 0:03:03]} 12. Ne2 {[%emt 0:01:19]} Nxe5 {[%emt 0:02:25]} 13. dxe5 {[%emt 0:00:17]} Ng8 {[%emt 0:03:06]} 14. h4 {[%emt 0:03:02]} f6 {[%emt 0:05:01]} 15. exf6+ {[%emt 0:02:33]} Qxf6 {[%emt 0:01:40]} 16. c3 {[%emt 0:00:16]} c6 {[%emt 0:07:04]} 17. Nf4 {[%emt 0:02:56]} e5 {[%emt 0:00:35]} 18. Nd3 {[%emt 0:00:30]} Rad8 {[%emt 0:03:51]} 19. Be2 {[%emt 0:04:31]} Qe7 {[%emt 0:05:30]} 20. Nf2 {[%emt 0:03:55]} c5 {[%emt 0:01:55]} 21. g4 {[%emt 0:01:36]} h6 {[%emt 0:03:12]} 22. Qc2 {[%emt 0:09:35]} e4 {[%emt 0:04:27]} 23. f4 {[%emt 0:01:35]} d4 {[%emt 0:00:34]} 24. cxd4 {[%emt 0:05:11]} cxd4 {[%emt 0:00:06]} 25. exd4 {[%emt 0:03:24]} Rxf4 {[%emt 0:00:52]} 26. Qc7 {[%emt 0:02:00]} Rdf8 {[%emt 0:01:39]} 27. Rh2 {[%emt 0:01:12]} 0-1

[Event "CZE-ch Amateurs 2022"]
[Site "Luhacovice"]
[Date "2022.03.13"]
[Round "2.3"]
[White "Kratochvil, Josef"]
[Black "Petras, Milan"]
[Result "1-0"]
[ECO "A08"]
[WhiteElo "2200"]
[BlackElo "1848"]
[Annotator "ChessBase"]
[PlyCount "51"]
[EventDate "2022.03.12"]
[EventType "swiss"]
[EventCountry "CZE"]
[SourceTitle "playchess.com"]
[Source "ChessBase"]
[SourceQuality "1"]
[TimeControl "5400+30"]

1. e4 {[%emt 0:00:05]} e6 {[%emt 0:16:56]} 2. d3 {[%emt 0:00:44]} d5 {[%emt 0:00:50]} 3. Nd2 {[%emt 0:00:04]} c5 {[%emt 0:00:18]} 4. Ngf3 {[%emt 0:00:09]} Nc6 {[%emt 0:00:04]} 5. g3 {[%emt 0:00:05]} Nf6 {[%emt 0:00:35]} 6. Bg2 {[%emt 0:00:08]} dxe4 {[%emt 0:02:56]} 7. dxe4 {[%emt 0:00:09]} e5 {[%emt 0:00:13]} 8. O-O {[%emt 0:02:11]} Be7 {[%emt 0:00:39]} 9. c3 {[%emt 0:01:14]} O-O {[%emt 0:00:13]} 10. Qe2 {[%emt 0:00:15]} Rb8 {[%emt 0:05:21]} 11. Nc4 {[%emt 0:03:35]} Qc7 {[%emt 0:00:07]} 12. Ncxe5 {[%emt 0:03:30]} b5 {[%emt 0:05:44]} 13. Nxc6 {[%emt 0:04:21]} Qxc6 {[%emt 0:00:02]} 14. Bf4 {[%emt 0:00:16]} Rb6 {[%emt 0:00:49]} 15. Rfe1 {[%emt 0:04:46]} Bb7 {[%emt 0:04:45]} 16. Rad1 {[%emt 0:06:02]} Re8 {[%emt 0:14:06]} 17. Nh4 {[%emt 0:10:25]} Qe6 {[%emt 0:11:39]} 18. Nf5 {[%emt 0:03:45]} Bf8 {[%emt 0:01:44]} 19. f3 {[%emt 0:02:54]} b4 {[%emt 0:09:47]} 20. c4 {[%emt 0:06:05]} b3 {[%emt 0:00:32]} 21. a3 {[%emt 0:02:01]} h6 {[%emt 0:02:02]} 22. Bd2 {[%emt 0:05:31]} Nd7 {[%emt 0:04:28]} 23. Ba5 {[%emt 0:03:57]} Ra6 {[%emt 0:00:24]} 24. Bc3 {[%emt 0:00:10]} Nb6 {[%emt 0:01:42]} 25. Ne3 {[%emt 0:07:59]} Na4 {[%emt 0:04:41]} 26. Rd3 {[%emt 0:01:00]} 1-0

[Event "CZE-ch Amateurs 2022"]
[Site "Luhacovice"]
[Date "2022.03.13"]
[Round "2.4"]
[White "Stary, Lukas"]
[Black "Nemec, Pavel"]
[Result "1/2-1/2"]
[ECO "D02"]
[WhiteElo "1856"]
[BlackElo "2223"]
[Annotator "RC"]
[PlyCount "63"]
[EventDate "2022.03.12"]
[EventType "swiss"]
[EventCountry "CZE"]
[SourceTitle "playchess.com"]
[Source "ChessBase"]
[SourceQuality "1"]
[TimeControl "5400+30"]

1. d4 {[%emt 0:00:03]} Nf6 {[%emt 0:00:10]} 2. Bf4 {[%emt 0:00:06]} d5 {[%emt 0:00:30]} 3. e3 {[%emt 0:00:09]} e6 {[%emt 0:00:19]} 4. Nd2 {[%emt 0:00:05]} Bd6 {[%emt 0:00:48]} 5. Bg3 {[%emt 0:00:02]} O-O {[%emt 0:00:46]} 6. Ngf3 {[%emt 0:00:26]} c5 {[%emt 0:02:13]} 7. c3 {[%emt 0:00:01]} b6 {[%emt 0:01:28]} 8. Bd3 {[%emt 0:00:23]} Ba6 {[%emt 0:00:45]} 9. Bxa6 {[%emt 0:00:22]} Nxa6 {[%emt 0:00:02]} 10. Qe2 {[%emt 0:00:10]} Nc7 {[%emt 0:00:53]} 11. e4 {[%emt 0:00:51]} Be7 {[%emt 0:00:34]} 12. e5 {[%emt 0:10:33]} Nh5 {[%emt 0:00:19]} 13. Nf1 {[%emt 0:03:10]} a5 {[%emt 0:15:36]} 14. Ne3 {[%emt 0:02:13]} c4 {[%emt 0:08:09]} 15. O-O {[%emt 0:04:52]} b5 {[%emt 0:00:23]} 16. a3 {[%emt 0:04:59]} b4 {[%emt 0:01:30]} 17. axb4 {[%emt 0:06:51]} Nxg3 {[%emt 0:01:59]} 18. hxg3 {[%emt 0:01:33]} axb4 {[%emt 0:00:07]} 19. Rfb1 {[%emt 0:07:41]} Qd7 {[%emt 0:06:10]} 20. Ne1 {[%emt 0:05:27]} Nb5 {[%emt 0:03:04]} 21. Rxa8 {[%emt 0:06:07]} Rxa8 {[%emt 0:00:02]} 22. Nd1 {[%emt 0:00:29]} Ra2 {[%emt 0:01:15]} 23. Qe3 {[%emt 0:00:57]} Qa7 {[%emt 0:02:34]} 24. Qc1 {[%emt 0:01:21]} f6 {[%emt 0:04:48]} 25. exf6 {[%emt 0:04:52]} Bxf6 {[%emt 0:00:31]} 26. Nc2 {[%emt 0:04:33]} b3 {[%emt 0:05:55]} 27. Nce3 {[%emt 0:08:41]} Nd6 {[%emt 0:07:02]} 28. Ng4 {[%emt 0:02:01]} Ne4 {[%emt 0:00:25]} 29. Nxf6+ {[%emt 0:00:22]} gxf6 {[%emt 0:00:34]} 30. Ne3 {[%emt 0:01:28]} Qf7 {[%emt 0:08:55]} 31. Qe1 {[%emt 0:02:10]} Qg6 {[%emt 0:01:33]} 32. Nf1 {[%emt 0:03:35]} 1/2-1/2

[Event "CZE-ch Amateurs 2022"]
[Site "Luhacovice"]
[Date "2022.03.13"]
[Round "2.5"]
[White "Vanek, Ladislav"]
[Black "Vylicil, Adam"]
[Result "1/2-1/2"]
[ECO "E20"]
[WhiteElo "2221"]
[BlackElo "1860"]
[Annotator "RC"]
[PlyCount "51"]
[EventDate "2022.03.12"]
[EventType "swiss"]
[EventCountry "CZE"]
[SourceTitle "playchess.com"]
[Source "ChessBase"]
[SourceQuality "1"]
[TimeControl "5400+30"]

1. d4 {[%emt 0:00:09]} Nf6 {[%emt 0:00:09]} 2. c4 {[%emt 0:00:10]} e6 {[%emt 0:00:04]} 3. Nc3 {[%emt 0:00:19]} Bb4 {[%emt 0:00:08]} 4. f3 {[%emt 0:00:25]} d5 {[%emt 0:00:10]} 5. a3 {[%emt 0:00:18]} Be7 {[%emt 0:00:06]} 6. e4 {[%emt 0:01:43]} dxe4 {[%emt 0:00:17]} 7. fxe4 {[%emt 0:00:05]} c5 {[%emt 0:00:15]} 8. d5 {[%emt 0:00:47]} exd5 {[%emt 0:00:08]} 9. exd5 {[%emt 0:00:13]} O-O {[%emt 0:00:07]} 10. Nf3 {[%emt 0:00:28]} Bd6 {[%emt 0:00:28]} 11. Be2 {[%emt 0:00:48]} Bg4 {[%emt 0:00:27]} 12. O-O {[%emt 0:01:06]} Re8 {[%emt 0:01:13]} 13. Bg5 {[%emt 0:06:10]} Nbd7 {[%emt 0:00:37]} 14. Qc2 {[%emt 0:04:21]} h6 {[%emt 0:02:42]} 15. Bh4 {[%emt 0:01:34]} Bxf3 {[%emt 0:02:22]} 16. Rxf3 {[%emt 0:14:21]} Qb8 {[%emt 0:08:24]} 17. Bg3 {[%emt 0:03:44]} a6 {[%emt 0:05:50]} 18. Raf1 {[%emt 0:00:54]} Bxg3 {[%emt 0:08:09]} 19. Rxg3 {[%emt 0:00:09]} Qd6 {[%emt 0:00:52]} 20. Qd2 {[%emt 0:10:57]} Re7 {[%emt 0:04:36]} 21. Qf4 {[%emt 0:11:43]} Qxf4 {[%emt 0:07:21]} 22. Rxf4 {[%emt 0:00:42]} Rae8 {[%emt 0:04:21]} 23. Bg4 {[%emt 0:00:47]} Nxg4 {[%emt 0:07:41]} 24. Rgxg4 {[%emt 0:02:26]} Kf8 {[%emt 0:09:43]} 25. Rg3 {[%emt 0:17:28]} Re1+ {[%emt 0:10:55]} 26. Rf1 {[%emt 0:00:32]} 1/2-1/2